[Event "FIDE WYCC Girls U14 2023"]
[Site "Montesilvano"]
[Date "2023.11.24"]
[Round "11.17"]
[White "Zagorac, Lara"]
[Black "Jankovic, Tamara"]
[Result "1-0"]
[ECO "E67"]
[WhiteElo "1866"]
[BlackElo "1711"]
[Annotator "NA RC"]
[PlyCount "129"]
[EventDate "2023.11.13"]
[EventType "swiss"]
[EventCountry "ITA"]
[SourceTitle "playchess.com"]
[Source "ChessBase"]
[SourceQuality "1"]
[TimeControl "40/5400+30:1800+30"]

1. d4 {[%emt 0:00:03]} Nf6 {[%emt 0:00:08]} 2. Nf3 {[%emt 0:00:07]} g6 {[%emt 0:00:05]} 3. c4 {[%emt 0:00:05]} Bg7 {[%emt 0:00:06]} 4. g3 {[%emt 0:00:07]} O-O {[%emt 0:00:06]} 5. Bg2 {[%emt 0:00:06]} d6 {[%emt 0:00:06]} 6. Nc3 {[%emt 0:00:16]} Nbd7 {[%emt 0:00:06]} 7. Bf4 {[%emt 0:01:00]} Nh5 {[%emt 0:01:05]} 8. Bg5 {[%emt 0:00:13]} h6 {[%emt 0:00:09]} 9. Be3 {[%emt 0:00:33]} e5 {[%emt 0:01:10]} 10. Qd2 {[%emt 0:00:24]} Kh7 {[%emt 0:01:47]} 11. dxe5 {[%emt 0:00:12]} Nxe5 {[%emt 0:11:54]} 12. Nxe5 {[%emt 0:00:15]} dxe5 {[%emt 0:01:13]} 13. O-O-O {[%emt 0:00:55]} Qxd2+ {[%emt 0:01:43]} 14. Rxd2 {[%emt 0:00:09]} c6 {[%emt 0:00:10]} 15. Bc5 {[%emt 0:01:05]} Rg8 {[%emt 0:03:42]} 16. Ne4 {[%emt 0:08:09]} Be6 {[%emt 0:04:04]} 17. Nd6 {[%emt 0:04:44]} Nf6 {[%emt 0:06:37]} 18. b3 {[%emt 0:05:35]} Nd7 {[%emt 0:07:31]} 19. Ba3 {[%emt 0:17:21]} Bf8 {[%emt 0:05:30]} 20. Bb2 {[%emt 0:02:13]} Bxd6 {[%emt 0:01:10]} 21. Rxd6 {[%emt 0:00:28]} Rac8 {[%emt 0:15:22]} 22. Rhd1 {[%emt 0:02:23]} Rc7 {[%emt 0:00:22]} 23. Kb1 {[%emt 0:08:22]} Re8 {[%emt 0:07:08]} 24. h4 {[%emt 0:04:58]} h5 {[%emt 0:03:28]} 25. a4 {[%emt 0:09:05]} Kg8 {[%emt 0:00:31]} 26. a5 {[%emt 0:00:46]} a6 {[%emt 0:03:15]} 27. Ka2 {[%emt 0:03:55]} f6 {[%emt 0:05:50]} 28. Be4 {[%emt 0:03:25]} Kf7 {[%emt 0:00:16]} 29. Bc2 {[%emt 0:01:44]} Nf8 {[%emt 0:02:47]} 30. Rf1 {[%emt 0:09:56]} Rd7 {[%emt 0:01:57]} 31. Rxd7+ {[%emt 0:00:20]} Nxd7 {[%emt 0:00:38]} 32. f4 {[%emt 0:00:29]} Bg4 {[%emt 0:02:23]} 33. e4 {[%emt 0:01:31]} Re6 {[%emt 0:02:48]} 34. Ba3 {[%emt 0:02:55]} c5 {[%emt 0:04:17]} 35. Bc1 {[%emt 0:01:50]} exf4 {[%emt 0:01:37]} 36. gxf4 {[%emt 0:00:35]} Ke7 {[%emt 0:01:34]} 37. Rf2 {[%emt 0:00:57]} Kd6 {[%emt 0:02:16]} 38. Be3 {[%emt 0:01:14]} f5 {[%emt 0:01:21]} 39. e5+ {[%emt 0:00:56]} Ke7 {[%emt 0:00:03]} 40. Rd2 {[%emt 0:00:00]} Rc6 {[%emt 0:00:00]} 41. Ka3 {[%emt 0:02:05]} Bf3 {[%emt 0:15:40]} 42. b4 {[%emt 0:09:49]} Rc7 {[%emt 0:06:42]} 43. b5 {[%emt 0:03:37]} Nf8 {[%emt 0:04:14]} 44. Rd6 {[%emt 0:01:48]} axb5 {[%emt 0:00:08]} 45. cxb5 {[%emt 0:00:22]} Be2 {[%emt 0:01:28]} 46. Bd3 {[%emt 0:02:46]} Bxd3 {[%emt 0:00:21]} 47. Rxd3 {[%emt 0:00:05]} Ne6 {[%emt 0:00:46]} 48. Rc3 {[%emt 0:00:43]} Kd7 {[%emt 0:01:15]} 49. Ka4 {[%emt 0:01:27]} Rc8 {[%emt 0:05:03]} 50. Rd3+ {[%emt 0:01:06]} Ke7 {[%emt 0:01:13]} 51. b6 {[%emt 0:01:31]} Rc6 {[%emt 0:01:03]} 52. Kb5 {[%emt 0:01:05]} Rc8 {[%emt 0:00:21]} 53. Rc3 {[%emt 0:00:26]} Kd7 {[%emt 0:00:41]} 54. Rd3+ {[%emt 0:01:57]} Ke7 {[%emt 0:00:09]} 55. a6 {[%emt 0:01:07]} bxa6+ {[%emt 0:00:39]} 56. Kxa6 {[%emt 0:00:11]} Nd8 {[%emt 0:01:31]} 57. b7 {[%emt 0:01:36]} Nxb7 {[%emt 0:00:36]} 58. Kxb7 {[%emt 0:00:10]} c4 {[%emt 0:00:21]} 59. Rc3 {[%emt 0:00:44]} Rd8 {[%emt 0:00:09]} 60. Rxc4 {[%emt 0:00:11]} Rd3 {[%emt 0:00:12]} 61. Bc5+ {[%emt 0:01:05]} Kf7 {[%emt 0:00:17]} 62. Rd4 {[%emt 0:01:50]} Rf3 {[%emt 0:00:25]} 63. Kc6 {[%emt 0:00:16]} Rh3 {[%emt 0:00:42]} 64. Kd7 {[%emt 0:00:18]} Re3 {[%emt 0:00:54]} 65. Rd6 {[%emt 0:00:44]} 1-0

[Event "FIDE WYCC Girls U14 2023"]
[Site "Montesilvano"]
[Date "2023.11.24"]
[Round "11.18"]
[White "Diasamidze, Lulu"]
[Black "Dicen, Elis Denele"]
[Result "0-1"]
[ECO "B90"]
[WhiteElo "1676"]
[BlackElo "1976"]
[Annotator "NA RC"]
[PlyCount "96"]
[EventDate "2023.11.13"]
[EventType "swiss"]
[EventCountry "ITA"]
[SourceTitle "playchess.com"]
[Source "ChessBase"]
[SourceQuality "1"]
[TimeControl "40/5400+30:1800+30"]

1. e4 {[%emt 0:00:03]} c5 {[%emt 0:00:06]} 2. Nf3 {[%emt 0:00:08]} d6 {[%emt 0:00:06]} 3. d4 {[%emt 0:00:06]} cxd4 {[%emt 0:00:09]} 4. Nxd4 {[%emt 0:00:05]} Nf6 {[%emt 0:00:10]} 5. Nc3 {[%emt 0:00:21]} a6 {[%emt 0:00:07]} 6. h3 {[%emt 0:00:21]} e5 {[%emt 0:00:25]} 7. Nb3 {[%emt 0:00:15]} Be7 {[%emt 0:01:38]} 8. g4 {[%emt 0:01:07]} h6 {[%emt 0:00:43]} 9. Be3 {[%emt 0:00:52]} Be6 {[%emt 0:02:59]} 10. Bg2 {[%emt 0:02:11]} b5 {[%emt 0:03:16]} 11. O-O {[%emt 0:03:52]} O-O {[%emt 0:02:06]} 12. Qd2 {[%emt 0:04:02]} Nbd7 {[%emt 0:08:28]} 13. Ne2 {[%emt 0:07:42]} Nb6 {[%emt 0:06:28]} 14. Bxb6 {[%emt 0:03:13]} Qxb6 {[%emt 0:00:14]} 15. Ng3 {[%emt 0:00:40]} Rfd8 {[%emt 0:09:55]} 16. Nf5 {[%emt 0:08:22]} Bxf5 {[%emt 0:07:16]} 17. exf5 {[%emt 0:05:51]} d5 {[%emt 0:02:29]} 18. Qe2 {[%emt 0:01:08]} e4 {[%emt 0:03:24]} 19. Rad1 {[%emt 0:02:09]} Rac8 {[%emt 0:01:38]} 20. Kh1 {[%emt 0:00:28]} Bd6 {[%emt 0:06:10]} 21. f3 {[%emt 0:02:18]} exf3 {[%emt 0:02:20]} 22. Bxf3 {[%emt 0:01:09]} Re8 {[%emt 0:03:59]} 23. Qg2 {[%emt 0:02:34]} Ne4 {[%emt 0:02:47]} 24. Bxe4 {[%emt 0:00:14]} dxe4 {[%emt 0:00:13]} 25. Rfe1 {[%emt 0:01:03]} e3 {[%emt 0:05:34]} 26. Rd3 {[%emt 0:02:01]} Bf4 {[%emt 0:02:35]} 27. Nd4 {[%emt 0:01:51]} Rcd8 {[%emt 0:04:34]} 28. c3 {[%emt 0:01:24]} b4 {[%emt 0:01:22]} 29. Qf3 {[%emt 0:03:50]} Bg5 {[%emt 0:00:56]} 30. Qg3 {[%emt 0:04:23]} bxc3 {[%emt 0:05:04]} 31. bxc3 {[%emt 0:00:12]} Qb7+ {[%emt 0:00:51]} 32. Qg2 {[%emt 0:01:09]} Qc7 {[%emt 0:01:51]} 33. Red1 {[%emt 0:01:40]} Rc8 {[%emt 0:01:20]} 34. Ne2 {[%emt 0:00:41]} Qc4 {[%emt 0:01:03]} 35. a3 {[%emt 0:00:24]} Rb8 {[%emt 0:01:54]} 36. Rd4 {[%emt 0:13:35]} Qa2 {[%emt 0:01:48]} 37. Rb4 {[%emt 0:00:46]} a5 {[%emt 0:05:05]} 38. Rxb8 {[%emt 0:01:44]} Rxb8 {[%emt 0:00:08]} 39. Nc1 {[%emt 0:02:59]} Qxa3 {[%emt 0:01:49]} 40. h4 {[%emt 0:00:00]} Bxh4 {[%emt 0:00:00]} 41. Qh2 {[%emt 0:03:27]} Rb1 {[%emt 0:05:05]} 42. Qxh4 {[%emt 0:00:25]} Rxc1 {[%emt 0:00:27]} 43. Qd8+ {[%emt 0:00:25]} Kh7 {[%emt 0:00:19]} 44. f6 {[%emt 0:00:12]} Rxd1+ {[%emt 0:01:16]} 45. Qxd1 {[%emt 0:00:11]} Qxc3 {[%emt 0:00:40]} 46. fxg7 {[%emt 0:00:11]} Kxg7 {[%emt 0:00:20]} 47. g5 {[%emt 0:00:07]} hxg5 {[%emt 0:00:27]} 48. Qh5 {[%emt 0:00:15]} Qe5 {[%emt 0:00:33]} 0-1

[Event "FIDE WYCC Girls U14 2023"]
[Site "Montesilvano"]
[Date "2023.11.24"]
[Round "11.19"]
[White "Maklakova, Naomi"]
[Black "Blauhut, Anna"]
[Result "1-0"]
[ECO "D02"]
[WhiteElo "1873"]
[BlackElo "1640"]
[Annotator "NA RC"]
[PlyCount "107"]
[EventDate "2023.11.13"]
[EventType "swiss"]
[EventCountry "ITA"]
[SourceTitle "playchess.com"]
[Source "ChessBase"]
[SourceQuality "1"]
[TimeControl "40/5400+30:1800+30"]

1. d4 {[%emt 0:00:18]} d5 {[%emt 0:00:21]} 2. Nf3 {[%emt 0:00:27]} Nf6 {[%emt 0:00:35]} 3. Bf4 {[%emt 0:00:11]} c5 {[%emt 0:00:33]} 4. e3 {[%emt 0:00:29]} Nc6 {[%emt 0:00:53]} 5. c3 {[%emt 0:00:28]} Nh5 {[%emt 0:01:05]} 6. Bg3 {[%emt 0:00:24]} g6 {[%emt 0:03:49]} 7. Nbd2 {[%emt 0:01:10]} e6 {[%emt 0:01:10]} 8. Bd3 {[%emt 0:02:29]} Be7 {[%emt 0:01:46]} 9. e4 {[%emt 0:08:46]} cxd4 {[%emt 0:01:54]} 10. Nxd4 {[%emt 0:02:28]} Nxd4 {[%emt 0:03:42]} 11. cxd4 {[%emt 0:00:11]} dxe4 {[%emt 0:00:40]} 12. Nxe4 {[%emt 0:00:07]} O-O {[%emt 0:03:17]} 13. Be2 {[%emt 0:01:24]} Nf6 {[%emt 0:06:05]} 14. Nc3 {[%emt 0:00:48]} Nd5 {[%emt 0:01:38]} 15. O-O {[%emt 0:02:24]} Bf6 {[%emt 0:02:26]} 16. Qd2 {[%emt 0:01:48]} Nxc3 {[%emt 0:05:47]} 17. bxc3 {[%emt 0:00:06]} b6 {[%emt 0:02:12]} 18. Bf3 {[%emt 0:08:02]} Ba6 {[%emt 0:00:10]} 19. Bxa8 {[%emt 0:05:35]} Bxf1 {[%emt 0:00:21]} 20. Bc6 {[%emt 0:01:16]} Bc4 {[%emt 0:01:37]} 21. a4 {[%emt 0:00:37]} Qc8 {[%emt 0:07:17]} 22. Qf4 {[%emt 0:01:46]} Bg7 {[%emt 0:00:31]} 23. Qf3 {[%emt 0:00:16]} Rd8 {[%emt 0:02:59]} 24. h4 {[%emt 0:01:56]} Bd5 {[%emt 0:01:23]} 25. Bxd5 {[%emt 0:00:17]} Rxd5 {[%emt 0:00:44]} 26. Bf4 {[%emt 0:02:55]} Bf6 {[%emt 0:05:50]} 27. g3 {[%emt 0:05:12]} Bg7 {[%emt 0:02:45]} 28. Kg2 {[%emt 0:00:20]} Qc4 {[%emt 0:02:28]} 29. a5 {[%emt 0:09:03]} bxa5 {[%emt 0:01:26]} 30. Rb1 {[%emt 0:03:37]} Rd8 {[%emt 0:02:07]} 31. Rb7 {[%emt 0:02:11]} f6 {[%emt 0:13:23]} 32. Rxa7 {[%emt 0:03:32]} e5 {[%emt 0:04:56]} 33. dxe5 {[%emt 0:02:20]} fxe5 {[%emt 0:02:03]} 34. Rxg7+ {[%emt 0:12:08]} Kxg7 {[%emt 0:00:48]} 35. Bxe5+ {[%emt 0:00:04]} Kg8 {[%emt 0:01:00]} 36. Qf6 {[%emt 0:00:07]} Qd5+ {[%emt 0:02:47]} 37. Kh2 {[%emt 0:00:05]} Rd7 {[%emt 0:01:14]} 38. Bd4 {[%emt 0:01:49]} Qd6 {[%emt 0:02:24]} 39. Qh8+ {[%emt 0:00:36]} Kf7 {[%emt 0:01:32]} 40. Qxh7+ {[%emt 0:00:00]} Ke8 {[%emt 0:00:00]} 41. Qg8+ {[%emt 0:00:48]} Ke7 {[%emt 0:03:44]} 42. Be3 {[%emt 0:03:56]} Qe6 {[%emt 0:06:11]} 43. Bg5+ {[%emt 0:15:39]} Kd6 {[%emt 0:00:10]} 44. Qb8+ {[%emt 0:00:07]} Kc6 {[%emt 0:00:45]} 45. Qc8+ {[%emt 0:04:08]} Kb5 {[%emt 0:01:26]} 46. Be3 {[%emt 0:00:29]} Qd6 {[%emt 0:01:49]} 47. c4+ {[%emt 0:01:07]} Ka4 {[%emt 0:00:08]} 48. c5 {[%emt 0:00:56]} Qe6 {[%emt 0:04:25]} 49. Qf8 {[%emt 0:08:56]} Rf7 {[%emt 0:01:01]} 50. Qa8 {[%emt 0:01:57]} Rc7 {[%emt 0:02:36]} 51. Qf3 {[%emt 0:00:35]} Kb5 {[%emt 0:02:19]} 52. Qd1 {[%emt 0:01:24]} Ka6 {[%emt 0:01:27]} 53. Qe2+ {[%emt 0:02:39]} Kb7 {[%emt 0:00:23]} 54. Qb5+ {[%emt 0:00:09]} 1-0

[Event "FIDE WYCC Girls U14 2023"]
[Site "Montesilvano"]
[Date "2023.11.24"]
[Round "11.20"]
[White "Yu, Avery"]
[Black "Mkrtchyan, Anahit H."]
[Result "0-1"]
[ECO "B43"]
[WhiteElo "1861"]
[BlackElo "1630"]
[Annotator "NA RC"]
[PlyCount "82"]
[EventDate "2023.11.13"]
[EventType "swiss"]
[EventCountry "ITA"]
[SourceTitle "playchess.com"]
[Source "ChessBase"]
[SourceQuality "1"]
[TimeControl "40/5400+30:1800+30"]

1. e4 {[%emt 0:00:02]} c5 {[%emt 0:00:04]} 2. Nf3 {[%emt 0:00:06]} e6 {[%emt 0:00:04]} 3. d4 {[%emt 0:00:04]} cxd4 {[%emt 0:00:03]} 4. Nxd4 {[%emt 0:00:04]} a6 {[%emt 0:00:08]} 5. Nc3 {[%emt 0:00:04]} b5 {[%emt 0:00:04]} 6. g3 {[%emt 0:00:15]} Bb7 {[%emt 0:01:32]} 7. Bg2 {[%emt 0:00:18]} Nf6 {[%emt 0:00:08]} 8. O-O {[%emt 0:11:43]} b4 {[%emt 0:00:43]} 9. Nd5 {[%emt 0:01:22]} exd5 {[%emt 0:01:38]} 10. exd5 {[%emt 0:00:48]} Bc5 {[%emt 0:02:59]} 11. Re1+ {[%emt 0:01:29]} Kf8 {[%emt 0:00:09]} 12. Nf5 {[%emt 0:05:29]} d6 {[%emt 0:09:02]} 13. Bf4 {[%emt 0:14:11]} h5 {[%emt 0:08:55]} 14. h3 {[%emt 0:11:14]} Qb6 {[%emt 0:07:48]} 15. Qd2 {[%emt 0:09:05]} Nbd7 {[%emt 0:02:08]} 16. Re7 {[%emt 0:02:17]} Re8 {[%emt 0:12:49]} 17. Qe2 {[%emt 0:06:56]} Ne5 {[%emt 0:03:42]} 18. Rxe8+ {[%emt 0:04:35]} Nxe8 {[%emt 0:00:08]} 19. Bxe5 {[%emt 0:02:19]} dxe5 {[%emt 0:00:13]} 20. Qxe5 {[%emt 0:02:25]} Qf6 {[%emt 0:00:17]} 21. Qe4 {[%emt 0:12:40]} g6 {[%emt 0:01:40]} 22. Ne3 {[%emt 0:05:12]} Nd6 {[%emt 0:00:19]} 23. Qd3 {[%emt 0:00:46]} Qxb2 {[%emt 0:00:37]} 24. Re1 {[%emt 0:00:22]} Qxa2 {[%emt 0:02:06]} 25. c4 {[%emt 0:00:42]} Qa3 {[%emt 0:00:44]} 26. Qc2 {[%emt 0:01:41]} Qc3 {[%emt 0:05:14]} 27. Qb1 {[%emt 0:02:06]} Kg7 {[%emt 0:00:55]} 28. Rc1 {[%emt 0:00:24]} Qf6 {[%emt 0:00:37]} 29. Qd3 {[%emt 0:00:36]} Re8 {[%emt 0:00:36]} 30. g4 {[%emt 0:00:29]} Qf4 {[%emt 0:01:24]} 31. gxh5 {[%emt 0:02:07]} Rxe3 {[%emt 0:01:49]} 32. fxe3 {[%emt 0:01:27]} Qxe3+ {[%emt 0:00:07]} 33. Qxe3 {[%emt 0:00:03]} Bxe3+ {[%emt 0:00:06]} 34. Kf1 {[%emt 0:00:06]} Bxc1 {[%emt 0:00:11]} 35. c5 {[%emt 0:00:02]} Ne8 {[%emt 0:01:18]} 36. hxg6 {[%emt 0:00:29]} fxg6 {[%emt 0:00:13]} 37. Ke2 {[%emt 0:01:23]} b3 {[%emt 0:00:22]} 38. Kd3 {[%emt 0:00:36]} b2 {[%emt 0:00:15]} 39. Kc2 {[%emt 0:00:07]} Kf6 {[%emt 0:00:13]} 40. Be4 {[%emt 0:00:00]} Ke5 {[%emt 0:00:00]} 41. Bxg6 {[%emt 0:01:04]} Bxd5 0-1

[Event "FIDE WYCC Girls U14 2023"]
[Site "Montesilvano"]
[Date "2023.11.24"]
[Round "11.21"]
[White "Sneha Halder"]
[Black "Sun, Wanyao Sarah"]
[Result "1-0"]
[ECO "A05"]
[WhiteElo "1807"]
[BlackElo "1593"]
[Annotator "NA RC"]
[PlyCount "109"]
[EventDate "2023.11.13"]
[EventType "swiss"]
[EventCountry "ITA"]
[SourceTitle "playchess.com"]
[Source "ChessBase"]
[SourceQuality "1"]
[TimeControl "40/5400+30:1800+30"]

1. Nf3 {[%emt 0:02:42]} Nf6 {[%emt 0:00:07]} 2. b3 {[%emt 0:00:08]} g6 {[%emt 0:00:23]} 3. Bb2 {[%emt 0:00:05]} Bg7 {[%emt 0:00:18]} 4. c4 {[%emt 0:00:05]} d6 {[%emt 0:00:44]} 5. d4 {[%emt 0:00:05]} O-O {[%emt 0:00:40]} 6. e3 {[%emt 0:00:18]} Nbd7 {[%emt 0:01:16]} 7. Be2 {[%emt 0:00:21]} c5 {[%emt 0:01:36]} 8. O-O {[%emt 0:00:10]} Re8 {[%emt 0:01:01]} 9. Nc3 {[%emt 0:01:16]} cxd4 {[%emt 0:02:32]} 10. exd4 {[%emt 0:00:34]} a6 {[%emt 0:01:08]} 11. Re1 {[%emt 0:00:41]} Nf8 {[%emt 0:00:53]} 12. b4 {[%emt 0:02:50]} d5 {[%emt 0:03:15]} 13. c5 {[%emt 0:01:57]} Ne6 {[%emt 0:02:18]} 14. a4 {[%emt 0:02:44]} Bd7 {[%emt 0:04:10]} 15. Qb3 {[%emt 0:02:13]} Nf4 {[%emt 0:04:38]} 16. Bf1 {[%emt 0:00:31]} Bf5 {[%emt 0:01:38]} 17. Ne5 {[%emt 0:04:56]} Ne4 {[%emt 0:02:06]} 18. Nxe4 {[%emt 0:00:32]} Bxe5 {[%emt 0:04:34]} 19. Ng3 {[%emt 0:02:53]} Bg7 {[%emt 0:01:12]} 20. Nxf5 {[%emt 0:00:25]} gxf5 {[%emt 0:00:09]} 21. g3 {[%emt 0:00:34]} Ng6 {[%emt 0:00:16]} 22. b5 {[%emt 0:09:37]} axb5 {[%emt 0:01:14]} 23. Bxb5 {[%emt 0:03:58]} Rf8 {[%emt 0:00:12]} 24. Bc3 {[%emt 0:00:13]} Qc7 {[%emt 0:04:25]} 25. Qxd5 {[%emt 0:01:38]} e6 {[%emt 0:00:40]} 26. Qb3 {[%emt 0:02:49]} f4 {[%emt 0:01:51]} 27. a5 {[%emt 0:00:36]} fxg3 {[%emt 0:01:43]} 28. hxg3 {[%emt 0:00:09]} h5 {[%emt 0:00:22]} 29. Bd3 {[%emt 0:00:57]} Ne7 {[%emt 0:01:26]} 30. Be4 {[%emt 0:00:13]} Rab8 {[%emt 0:01:06]} 31. Qb6 {[%emt 0:01:30]} Qd7 {[%emt 0:00:37]} 32. Red1 {[%emt 0:09:00]} Nd5 {[%emt 0:01:43]} 33. Qb3 {[%emt 0:00:04]} Nxc3 {[%emt 0:01:15]} 34. Qxc3 {[%emt 0:00:01]} Rfd8 {[%emt 0:01:05]} 35. Rab1 {[%emt 0:07:40]} Bxd4 {[%emt 0:01:07]} 36. Rxd4 {[%emt 0:01:10]} Qxd4 {[%emt 0:00:22]} 37. Qxd4 {[%emt 0:00:02]} Rxd4 {[%emt 0:00:09]} 38. Bxb7 {[%emt 0:00:02]} Rc4 {[%emt 0:04:10]} 39. a6 {[%emt 0:00:28]} Rxc5 {[%emt 0:00:11]} 40. a7 {[%emt 0:00:00]} Rcc8 {[%emt 0:00:00]} 41. axb8=Q {[%emt 0:00:42]} Rxb8 {[%emt 0:00:30]} 42. Be4 {[%emt 0:00:31]} Rd8 {[%emt 0:00:21]} 43. Bf3 {[%emt 0:00:11]} h4 {[%emt 0:00:41]} 44. gxh4 {[%emt 0:00:10]} Kg7 {[%emt 0:00:32]} 45. Kg2 {[%emt 0:00:15]} Rh8 {[%emt 0:00:55]} 46. Kg3 {[%emt 0:00:27]} f5 {[%emt 0:00:24]} 47. Rb6 {[%emt 0:00:46]} Re8 {[%emt 0:06:41]} 48. Kf4 {[%emt 0:03:04]} e5+ {[%emt 0:02:39]} 49. Kxf5 {[%emt 0:00:59]} Rf8+ {[%emt 0:00:07]} 50. Kg4 {[%emt 0:00:02]} e4 {[%emt 0:00:18]} 51. Rb7+ {[%emt 0:01:10]} Kh8 {[%emt 0:00:41]} 52. Bxe4 {[%emt 0:00:24]} Rxf2 {[%emt 0:00:10]} 53. Kg5 {[%emt 0:00:31]} Kg8 {[%emt 0:01:40]} 54. Rb8+ {[%emt 0:00:34]} Kg7 {[%emt 0:00:23]} 55. h5 {[%emt 0:00:28]} 1-0

[Event "FIDE WYCC Girls U14 2023"]
[Site "Montesilvano"]
[Date "2023.11.24"]
[Round "11.22"]
[White "Li Chen, Helena Joana"]
[Black "Wojs, Alicja"]
[Result "1-0"]
[ECO "B47"]
[WhiteElo "1799"]
[BlackElo "1630"]
[Annotator "NA RC"]
[PlyCount "75"]
[EventDate "2023.11.13"]
[EventType "swiss"]
[EventCountry "ITA"]
[SourceTitle "playchess.com"]
[Source "ChessBase"]
[SourceQuality "1"]
[TimeControl "40/5400+30:1800+30"]

1. e4 {[%emt 0:02:18]} c5 {[%emt 0:00:13]} 2. Nf3 {[%emt 0:00:07]} e6 {[%emt 0:00:06]} 3. d4 {[%emt 0:00:03]} cxd4 {[%emt 0:00:06]} 4. Nxd4 {[%emt 0:00:06]} Nc6 {[%emt 0:00:05]} 5. Nc3 {[%emt 0:00:08]} Qc7 {[%emt 0:00:05]} 6. a3 {[%emt 0:00:06]} a6 {[%emt 0:01:39]} 7. Be3 {[%emt 0:00:06]} Nf6 {[%emt 0:00:34]} 8. f4 {[%emt 0:00:13]} b5 {[%emt 0:03:53]} 9. e5 {[%emt 0:02:37]} Nxd4 {[%emt 0:01:39]} 10. Bxd4 {[%emt 0:05:58]} Nd5 {[%emt 0:10:03]} 11. Nxd5 {[%emt 0:00:17]} exd5 {[%emt 0:00:05]} 12. b4 {[%emt 0:03:23]} Be7 {[%emt 0:04:22]} 13. Bd3 {[%emt 0:00:56]} Bb7 {[%emt 0:07:29]} 14. O-O {[%emt 0:01:08]} O-O-O {[%emt 0:00:51]} 15. c3 {[%emt 0:01:51]} f6 {[%emt 0:14:12]} 16. a4 {[%emt 0:00:52]} fxe5 {[%emt 0:01:46]} 17. fxe5 {[%emt 0:00:32]} Rdf8 {[%emt 0:01:47]} 18. axb5 {[%emt 0:00:21]} Rxf1+ {[%emt 0:02:34]} 19. Qxf1 {[%emt 0:00:08]} Rf8 {[%emt 0:00:05]} 20. Qe2 {[%emt 0:00:07]} axb5 {[%emt 0:00:38]} 21. Bxb5 {[%emt 0:02:49]} Rf4 {[%emt 0:19:56]} 22. e6 {[%emt 0:05:16]} Re4 {[%emt 0:00:44]} 23. Bxd7+ {[%emt 0:01:13]} Kd8 {[%emt 0:00:09]} 24. Qf2 {[%emt 0:00:30]} Rxd4 {[%emt 0:01:22]} 25. cxd4 {[%emt 0:05:26]} Bxb4 {[%emt 0:01:01]} 26. Rf1 {[%emt 0:02:38]} Qd6 {[%emt 0:03:44]} 27. Qh4+ {[%emt 0:03:20]} Kc7 {[%emt 0:00:37]} 28. Rc1+ {[%emt 0:01:04]} Kb8 {[%emt 0:00:58]} 29. Qd8+ {[%emt 0:00:30]} Ka7 {[%emt 0:00:01]} 30. Ra1+ {[%emt 0:00:28]} Ba6 {[%emt 0:00:13]} 31. e7 {[%emt 0:00:22]} Qf4 {[%emt 0:00:21]} 32. Rxa6+ {[%emt 0:00:59]} Kxa6 {[%emt 0:00:05]} 33. Qa8+ {[%emt 0:00:12]} Kb6 {[%emt 0:00:05]} 34. Qc6+ {[%emt 0:00:10]} Ka7 {[%emt 0:00:08]} 35. Qa4+ {[%emt 0:00:04]} Kb6 {[%emt 0:00:14]} 36. Qxb4+ {[%emt 0:00:43]} Kc7 {[%emt 0:00:01]} 37. e8=Q {[%emt 0:00:13]} Qc1+ {[%emt 0:00:04]} 38. Qee1 {[%emt 0:00:06]} 1-0

[Event "FIDE WYCC Girls U14 2023"]
[Site "Montesilvano"]
[Date "2023.11.24"]
[Round "11.23"]
[White "Romany, Joy"]
[Black "Seyhan, Pelin"]
[Result "1/2-1/2"]
[ECO "E06"]
[WhiteElo "1764"]
[BlackElo "1461"]
[Annotator "NA RC"]
[PlyCount "86"]
[EventDate "2023.11.13"]
[EventType "swiss"]
[EventCountry "ITA"]
[SourceTitle "playchess.com"]
[Source "ChessBase"]
[SourceQuality "1"]
[TimeControl "40/5400+30:1800+30"]

1. d4 {[%emt 0:00:03]} d5 {[%emt 0:00:11]} 2. Nf3 {[%emt 0:00:12]} e6 {[%emt 0:00:11]} 3. c4 {[%emt 0:00:05]} Nf6 {[%emt 0:00:05]} 4. g3 {[%emt 0:00:07]} Be7 {[%emt 0:00:09]} 5. Bg2 {[%emt 0:00:05]} c6 {[%emt 0:00:04]} 6. Qc2 {[%emt 0:00:25]} O-O {[%emt 0:00:08]} 7. O-O {[%emt 0:00:03]} b6 {[%emt 0:00:10]} 8. Nbd2 {[%emt 0:00:09]} Bb7 {[%emt 0:00:22]} 9. Rd1 {[%emt 0:00:29]} Na6 {[%emt 0:00:33]} 10. e4 {[%emt 0:03:30]} Rc8 {[%emt 0:03:39]} 11. b3 {[%emt 0:09:06]} c5 {[%emt 0:00:14]} 12. exd5 {[%emt 0:03:23]} exd5 {[%emt 0:00:07]} 13. Bb2 {[%emt 0:00:56]} Qc7 {[%emt 0:09:06]} 14. dxc5 {[%emt 0:06:04]} Nxc5 {[%emt 0:01:31]} 15. Be5 {[%emt 0:02:04]} Qd7 {[%emt 0:01:18]} 16. Ng5 {[%emt 0:02:39]} Ne6 {[%emt 0:05:14]} 17. Bxf6 {[%emt 0:05:28]} Nxg5 {[%emt 0:00:22]} 18. Bxe7 {[%emt 0:00:10]} Qxe7 {[%emt 0:00:06]} 19. Qf5 {[%emt 0:00:34]} g6 {[%emt 0:02:18]} 20. Qg4 {[%emt 0:00:57]} f5 {[%emt 0:05:10]} 21. Qh4 {[%emt 0:02:06]} Rfd8 {[%emt 0:09:56]} 22. Rac1 {[%emt 0:09:37]} Rc7 {[%emt 0:09:18]} 23. cxd5 {[%emt 0:05:43]} Rxc1 {[%emt 0:00:35]} 24. Rxc1 {[%emt 0:00:06]} Bxd5 {[%emt 0:00:03]} 25. Bxd5+ {[%emt 0:01:17]} Rxd5 {[%emt 0:00:01]} 26. Qc4 {[%emt 0:02:38]} Qe6 {[%emt 0:08:14]} 27. Nf1 {[%emt 0:03:53]} Rc5 {[%emt 0:02:10]} 28. Qxe6+ {[%emt 0:00:12]} Nxe6 {[%emt 0:00:02]} 29. Rd1 {[%emt 0:00:53]} Rc2 {[%emt 0:00:42]} 30. Rd6 {[%emt 0:00:10]} Nc5 {[%emt 0:09:41]} 31. Rd2 {[%emt 0:03:49]} Rxd2 {[%emt 0:03:31]} 32. Nxd2 {[%emt 0:00:01]} Kf7 {[%emt 0:02:21]} 33. Kg2 {[%emt 0:00:16]} Nd3 {[%emt 0:00:49]} 34. Kf3 {[%emt 0:03:26]} Ke6 {[%emt 0:01:50]} 35. Nb1 {[%emt 0:03:10]} b5 {[%emt 0:03:03]} 36. a3 {[%emt 0:02:45]} Nc5 {[%emt 0:02:46]} 37. Nc3 {[%emt 0:01:36]} a6 {[%emt 0:01:10]} 38. b4 {[%emt 0:01:15]} Nd7 {[%emt 0:02:46]} 39. Ke3 {[%emt 0:00:36]} Kd6 {[%emt 0:00:10]} 40. Kd4 {[%emt 0:00:00]} Ne5 {[%emt 0:00:00]} 41. h3 {[%emt 0:02:57]} Nf3+ {[%emt 0:01:29]} 42. Ke3 {[%emt 0:01:31]} Ne5 {[%emt 0:00:10]} 43. Kf4 {[%emt 0:07:19]} Nd3+ {[%emt 0:00:31]} 1/2-1/2